fUST/lending_fUST_20260628
["ID","MTS","AMOUNT","RATE_DAILY","PERIOD"]
[426558297,1782590118000,-3000.0,0.0003017,3]
[426558303,1782590118000,-3000.0,0.0003023,3]
[426558304,1782590118000,-3000.0,0.0003024,3]
[426558302,1782590118000,-3000.0,0.0003022,3]
[426558305,1782590118000,-3000.0,0.0003025,3]
[426558307,1782590118000,-3000.0,0.0003026,3]
[426558309,1782590118000,-2447.15161515,0.0003028,3]
[426558306,1782590118000,-500.0,0.0003025,3]
[426558308,1782590118000,-3000.0,0.0003027,3]
[426558301,1782590118000,-3000.0,0.0003021,3]
[426558313,1782590174000,1675696.76957023,0.00029796,30]
[426558320,1782590225000,9881.43359109,0.000125,2]
[426558321,1782590238000,7060.99207118,0.000125,2]
[426558324,1782590248000,18998.12343233,0.000212,30]
[426558325,1782590250000,941.15839577,7.6e-05,2]
[426558326,1782590252000,3862.20203085,0.0002,30]
[426558327,1782590254000,11180.00769768,0.0002,30]
[426558399,1782590324000,-4000000.0,0.00060087,30]
[426558407,1782590328000,-3632.81816684,0.0003,60]
[426558408,1782590334000,-4000000.0,0.00060087,30]
[426558418,1782590607000,150.45434718,0.00013699,23]
[426558419,1782590619000,361.58,0.00030137,120]
[426558421,1782590667000,179.95222763,0.00024387,120]
[426558450,1782590688000,210.62774182,0.0002,120]
[426558458,1782590704000,180.96198922,8.3e-07,30]
[426558460,1782590704000,180.96198922,8.3e-07,30]
[426558459,1782590704000,180.96198922,8.3e-07,30]
[426558466,1782590705000,180.96198922,8.1e-07,30]
[426558465,1782590705000,180.96198922,8.1e-07,30]
[426558464,1782590705000,180.96198922,8.1e-07,30]
[426558463,1782590705000,180.96198922,8.2e-07,30]
[426558462,1782590705000,180.96198922,8.2e-07,30]
[426558461,1782590705000,180.96198922,8.2e-07,30]
[426558468,1782590718000,195.62,0.0002332,60]
[426558470,1782590734000,164.068074,0.00018926,120]
[426558469,1782590734000,164.068074,0.00018926,61]
[426558474,1782590758000,268.97118886,0.0003,120]
[426558479,1782590799000,180.14061452,0.0003,120]
[426558502,1782591020000,586.86,0.0003,120]
[426558503,1782591029000,210.95264,0.00029,120]
[426558514,1782591034000,208.05422,0.00027,120]
[426558551,1782591038000,-500.0,0.00019999,2]
[426558556,1782591038000,-234.2963916,0.00019999,2]
[426558557,1782591038000,-500.0,0.00019999,2]
[426558549,1782591038000,-735.64,0.00019999,2]
[426558561,1782591038000,-500.0,0.00019999,2]
[426558553,1782591038000,-231.95653726,0.00019999,2]
[426558558,1782591038000,-500.0,0.00019999,2]
[426558554,1782591038000,-500.0,0.00019999,2]
[426558560,1782591038000,-500.0,0.00019999,2]
[426558542,1782591038000,-1000.0,0.00018975,2]
[426558550,1782591038000,-735.64,0.00019999,2]
[426558546,1782591038000,-316.11177292,0.00019396,7]
[426558541,1782591038000,-164.068074,0.00018926,2]
[426558537,1782591038000,-704.44636959,0.00018287,13]
[426558539,1782591038000,-200.0,0.00018843,2]
[426558547,1782591038000,-281.02043153,0.00019625,2]
[426558538,1782591038000,-759.1298405,0.00018659,2]
[426558545,1782591038000,-3189.38688976,0.00019205,5]
[426558548,1782591038000,-211.65621126,0.000199,2]
[426558540,1782591038000,-200.0,0.00018843,7]
[426558543,1782591038000,-504.3250881,0.00019095,2]
[426558544,1782591038000,-201.692673,0.00019191,2]
[426558559,1782591038000,-500.0,0.00019999,2]
[426558583,1782591038000,-1000.0,0.0002,2]
[426558555,1782591038000,-500.0,0.00019999,2]
[426558584,1782591038000,-1000.0,0.0002,2]
[426558579,1782591038000,-1000.0,0.0002,2]
[426558552,1782591038000,-500.0,0.00019999,2]
[426558582,1782591038000,-1000.0,0.0002,2]
[426558577,1782591038000,-1000.0,0.0002,2]
[426558578,1782591038000,-1000.0,0.0002,2]
[426558576,1782591038000,-1000.0,0.0002,2]
[426558580,1782591038000,-1000.0,0.0002,2]
[426558573,1782591038000,-22199.30700546,0.0002,5]
[426558572,1782591038000,-500.0,0.00019999,2]
[426558566,1782591038000,-500.0,0.00019999,2]
[426558581,1782591038000,-1000.0,0.0002,2]
[426558568,1782591038000,-500.0,0.00019999,2]
[426558567,1782591038000,-176.73009111,0.00019999,2]
[426558562,1782591038000,-346.67682251,0.00019999,2]
[426558571,1782591038000,-500.0,0.00019999,2]
[426558574,1782591038000,-24000.0,0.0002,2]
[426558575,1782591038000,-1000.0,0.0002,2]
[426558570,1782591038000,-500.0,0.00019999,2]
[426558564,1782591038000,-500.0,0.00019999,2]
[426558569,1782591038000,-500.0,0.00019999,2]
[426558565,1782591038000,-500.0,0.00019999,2]
[426558563,1782591038000,-495.92229594,0.00019999,2]
[426558686,1782591039000,-735.64,0.00030319,2]
[426558683,1782591039000,-3000.0,0.0003029,3]
[426558682,1782591039000,-552.84838485,0.0003028,3]
[426558680,1782591039000,-810.47405182,0.0003,2]
[426558689,1782591039000,-500.0,0.00030738,2]
[426558681,1782591039000,-160.0,0.00030219,38]
[426558688,1782591039000,-4153.097926,0.0003033,3]
[426558691,1782591039000,-1083.94,0.000315,30]
[426558687,1782591039000,-3000.0,0.0003032,3]
[426558695,1782591039000,-8405.97038086,0.00033333,2]
[426558690,1782591039000,-268.97118886,0.000309,120]
[426558693,1782591039000,-500.0,0.0003252,2]
[426558694,1782591039000,-268.97118886,0.000328,120]
[426558696,1782591039000,-300.0,0.00033333,2]
[426558692,1782591039000,-268.97118886,0.000318,120]
[426558679,1782591039000,-1348.24235756,0.0003,2]
[426558685,1782591039000,-3000.0,0.0003031,3]
[426558684,1782591039000,-3000.0,0.000303,3]
[426558675,1782591039000,-108880.81206845,0.00029788,2]
[426558615,1782591039000,-1000.0,0.0002,2]
[426558613,1782591039000,-1000.0,0.0002,2]
[426558610,1782591039000,-1000.0,0.0002,2]
[426558618,1782591039000,-1000.0,0.0002,2]
[426558609,1782591039000,-1000.0,0.0002,2]
[426558611,1782591039000,-1000.0,0.0002,2]
[426558608,1782591039000,-1000.0,0.0002,2]
[426558616,1782591039000,-1000.0,0.0002,2]
[426558612,1782591039000,-1000.0,0.0002,2]
[426558614,1782591039000,-1000.0,0.0002,2]
[426558617,1782591039000,-1000.0,0.0002,2]
[426558621,1782591039000,-1000.0,0.0002,2]
[426558623,1782591039000,-1000.0,0.0002,2]
[426558629,1782591039000,-1000.0,0.0002,2]
[426558626,1782591039000,-1000.0,0.0002,2]
[426558630,1782591039000,-1000.0,0.0002,2]
[426558620,1782591039000,-1000.0,0.0002,2]
[426558628,1782591039000,-1000.0,0.0002,2]
[426558627,1782591039000,-1000.0,0.0002,2]
[426558619,1782591039000,-1000.0,0.0002,2]
[426558607,1782591039000,-1000.0,0.0002,2]
[426558606,1782591039000,-1000.0,0.0002,2]
[426558604,1782591039000,-1000.0,0.0002,2]
[426558678,1782591039000,-1582.06477176,0.0003,2]
[426558587,1782591039000,-1000.0,0.0002,2]
[426558585,1782591039000,-1000.0,0.0002,2]
[426558586,1782591039000,-1000.0,0.0002,2]
[426558589,1782591039000,-1000.0,0.0002,2]
[426558593,1782591039000,-1000.0,0.0002,2]
[426558591,1782591039000,-1000.0,0.0002,2]
[426558588,1782591039000,-1000.0,0.0002,2]
[426558594,1782591039000,-1000.0,0.0002,2]
[426558622,1782591039000,-1000.0,0.0002,2]
[426558595,1782591039000,-1000.0,0.0002,2]
[426558596,1782591039000,-1000.0,0.0002,2]
[426558592,1782591039000,-1000.0,0.0002,2]
[426558598,1782591039000,-1000.0,0.0002,2]
[426558597,1782591039000,-1000.0,0.0002,2]
[426558599,1782591039000,-1000.0,0.0002,2]
[426558600,1782591039000,-1000.0,0.0002,2]
[426558603,1782591039000,-1000.0,0.0002,2]
[426558602,1782591039000,-1000.0,0.0002,2]
[426558605,1782591039000,-1000.0,0.0002,2]
[426558590,1782591039000,-1000.0,0.0002,2]
[426558625,1782591039000,-1000.0,0.0002,2]
[426558601,1782591039000,-1000.0,0.0002,2]
[426558624,1782591039000,-1000.0,0.0002,2]
[426558654,1782591039000,-164.0,0.00025288,16]
[426558670,1782591039000,-500.0,0.00029787,2]
[426558662,1782591039000,-735.64,0.00029787,2]
[426558669,1782591039000,-500.0,0.00029787,2]
[426558668,1782591039000,-576.07139346,0.00029787,2]
[426558663,1782591039000,-735.64,0.00029787,2]
[426558667,1782591039000,-735.64,0.00029787,2]
[426558660,1782591039000,-167.82,0.00029,7]
[426558666,1782591039000,-735.64,0.00029787,2]
[426558656,1782591039000,-300.0,0.00025327,3]
[426558658,1782591039000,-500.0,0.00027687,2]
[426558664,1782591039000,-735.64,0.00029787,2]
[426558657,1782591039000,-150.05541908,0.00027397,15]
[426558671,1782591039000,-606.0024344,0.00029787,2]
[426558676,1782591039000,-500.0,0.00029899,2]
[426558673,1782591039000,-500.0,0.00029787,2]
[426558677,1782591039000,-178.1611367,0.00029906,2]
[426558674,1782591039000,-593.97727186,0.00029787,2]
[426558672,1782591039000,-500.0,0.00029787,2]
[426558631,1782591039000,-1000.0,0.0002,2]
[426558659,1782591039000,-1403.69705547,0.00027913,2]
[426558651,1782591039000,-380.0,0.00024658,2]
[426558661,1782591039000,-735.64,0.00029787,2]
[426558650,1782591039000,-520.85249,0.0002465,2]
[426558633,1782591039000,-1000.0,0.0002,2]
[426558646,1782591039000,-1760.25405766,0.00024,2]
[426558642,1782591039000,-505.83677675,0.00022388,2]
[426558643,1782591039000,-739.856348,0.00022911,2]
[426558635,1782591039000,-500.0,0.0002,5]
[426558632,1782591039000,-1000.0,0.0002,2]
[426558644,1782591039000,-179.95222764,0.00023168,2]
[426558636,1782591039000,-500.0,0.00020274,5]
[426558641,1782591039000,-739.856348,0.00022055,2]
[426558637,1782591039000,-739.856348,0.00020342,2]
[426558634,1782591039000,-1025.48594019,0.0002,2]
[426558639,1782591039000,-500.0,0.00020548,5]
[426558640,1782591039000,-739.856348,0.00021198,2]
[426558649,1782591039000,-739.856348,0.00024624,2]
[426558648,1782591039000,-179.95222764,0.00024143,14]
[426558647,1782591039000,-472.1633744,0.00024,2]
[426558653,1782591039000,-899.26538088,0.0002515,2]
[426558655,1782591039000,-166.77,0.00025327,2]
[426558652,1782591039000,-500.0,0.00025,2]
[426558638,1782591039000,-1065.41,0.00020382,7]
[426558645,1782591039000,-739.856348,0.00023767,2]
[426558752,1782591040000,-560.03387079,0.00038356,2]
[426558735,1782591040000,-1000.0,0.00038356,2]
[426558730,1782591040000,-500.0,0.00038355,2]
[426558738,1782591040000,-500.0,0.00038356,2]
[426558732,1782591040000,-1200.0,0.00038356,2]
[426558733,1782591040000,-500.0,0.00038356,120]
[426558729,1782591040000,-500.0,0.00038355,2]
[426558728,1782591040000,-735.64,0.00038355,2]
[426558739,1782591040000,-500.0,0.00038356,2]
[426558741,1782591040000,-500.0,0.00038356,2]
[426558731,1782591040000,-503.75619308,0.00038356,2]
[426558736,1782591040000,-500.0,0.00038356,2]
[426558751,1782591040000,-500.0,0.00038356,2]
[426558750,1782591040000,-500.0,0.00038356,2]
[426558755,1782591040000,-1000.0,0.00038356,2]
[426558742,1782591040000,-500.0,0.00038356,2]
[426558743,1782591040000,-500.0,0.00038356,2]
[426558749,1782591040000,-500.0,0.00038356,2]
[426558744,1782591040000,-500.0,0.00038356,2]
[426558740,1782591040000,-500.0,0.00038356,2]
[426558746,1782591040000,-500.0,0.00038356,2]
[426558748,1782591040000,-500.0,0.00038356,2]
[426558756,1782591040000,-500.0,0.00038356,2]
[426558763,1782591040000,-500.0,0.00038356,2]
[426558758,1782591040000,-500.0,0.00038356,2]
[426558737,1782591040000,-500.0,0.00038356,2]
[426558768,1782591040000,-500.0,0.00038356,2]
[426558753,1782591040000,-500.0,0.00038356,2]
[426558734,1782591040000,-1000.0,0.00038356,2]
[426558705,1782591040000,-200.0,0.00035996,2]
[426558723,1782591040000,-735.64,0.00037999,2]
[426558764,1782591040000,-500.0,0.00038356,2]
[426558701,1782591040000,-200.0,0.00035996,2]
[426558699,1782591040000,-208.78104258,0.00035,2]
[426558700,1782591040000,-164.9537426,0.00035616,2]
[426558697,1782591040000,-268.97118886,0.000338,120]
[426558698,1782591040000,-359.83313177,0.00034246,2]
[426558706,1782591040000,-500.0,0.00035996,2]
[426558704,1782591040000,-200.0,0.00035996,2]
[426558708,1782591040000,-430.16069401,0.00036199,2]
[426558702,1782591040000,-200.0,0.00035996,2]
[426558712,1782591040000,-174.75301646,0.00036199,2]
[426558707,1782591040000,-637.10504209,0.00036199,2]
[426558713,1782591040000,-314.55542962,0.00036199,2]
[426558722,1782591040000,-735.64,0.00037999,2]
[426558714,1782591040000,-559.20965266,0.00036199,2]
[426558710,1782591040000,-1376.51422082,0.00036199,2]
[426558703,1782591040000,-200.0,0.00035996,2]
[426558718,1782591040000,-500.0,0.00037134,2]
[426558717,1782591040000,-200.0,0.00036686,2]
[426558726,1782591040000,-735.64,0.00037999,2]
[426558721,1782591040000,-333.65992546,0.00037761,2]
[426558720,1782591040000,-872.8913172,0.00037605,2]
[426558716,1782591040000,-500.0,0.00036645,2]
[426558715,1782591040000,-2148.65266656,0.00036348,2]
[426558727,1782591040000,-500.0,0.00038084,2]
[426558719,1782591040000,-735.64,0.00037463,2]
[426558725,1782591040000,-735.64,0.00037999,2]
[426558724,1782591040000,-735.64,0.00037999,2]
[426558709,1782591040000,-774.28924921,0.00036199,2]
[426558767,1782591040000,-500.0,0.00038356,2]
[426558781,1782591040000,-500.0,0.00038356,2]
[426558759,1782591040000,-500.0,0.00038356,2]
[426558804,1782591040000,-500.0,0.00038356,2]
[426558800,1782591040000,-500.0,0.00038356,2]
[426558803,1782591040000,-500.0,0.00038356,2]
[426558799,1782591040000,-558.91712867,0.00038356,2]
[426558798,1782591040000,-500.0,0.00038356,2]
[426558797,1782591040000,-3697.04,0.00038356,2]
[426558805,1782591040000,-500.0,0.00038356,2]
[426558802,1782591040000,-500.0,0.00038356,2]
[426558818,1782591040000,-500.0,0.00039726,2]
[426558808,1782591040000,-500.0,0.00038356,2]
[426558806,1782591040000,-500.0,0.00038356,2]
[426558810,1782591040000,-500.0,0.00038356,2]
[426558817,1782591040000,-500.0,0.00039726,2]
[426558796,1782591040000,-523.96855722,0.00038356,2]
[426558813,1782591040000,-500.0,0.00039726,120]
[426558809,1782591040000,-500.0,0.00038356,2]
[426558816,1782591040000,-500.0,0.00039726,2]
[426558814,1782591040000,-1000.0,0.00039726,2]
[426558815,1782591040000,-1000.0,0.00039726,2]
[426558811,1782591040000,-151.0,0.000384,7]
[426558812,1782591040000,-1200.0,0.00039726,2]
[426558819,1782591040000,-500.0,0.00039726,2]
[426558820,1782591040000,-500.0,0.00039726,2]
[426558821,1782591040000,-500.0,0.00039726,2]
[426558824,1782591040000,-500.0,0.00039726,2]
[426558822,1782591040000,-500.0,0.00039726,2]
[426558765,1782591040000,-1000.0,0.00038356,2]
[426558825,1782591040000,-500.0,0.00039726,2]
[426558807,1782591040000,-500.0,0.00038356,2]
[426558801,1782591040000,-500.0,0.00038356,2]
[426558823,1782591040000,-500.0,0.00039726,2]
[426558792,1782591040000,-500.0,0.00038356,2]
[426558789,1782591040000,-500.0,0.00038356,2]
[426558769,1782591040000,-500.0,0.00038356,2]
[426558766,1782591040000,-500.0,0.00038356,2]
[426558760,1782591040000,-500.0,0.00038356,2]
[426558757,1782591040000,-500.0,0.00038356,2]
[426558770,1782591040000,-500.0,0.00038356,2]
[426558775,1782591040000,-500.0,0.00038356,2]
[426558780,1782591040000,-500.0,0.00038356,2]
[426558776,1782591040000,-500.0,0.00038356,2]
[426558778,1782591040000,-1688.5,0.00038356,2]
[426558783,1782591040000,-500.0,0.00038356,2]
[426558771,1782591040000,-500.0,0.00038356,2]
[426558772,1782591040000,-500.0,0.00038356,2]
[426558782,1782591040000,-500.0,0.00038356,2]
[426558761,1782591040000,-729.7169,0.00038356,2]
[426558785,1782591040000,-500.0,0.00038356,2]
[426558790,1782591040000,-500.0,0.00038356,2]
[426558786,1782591040000,-500.0,0.00038356,2]
[426558788,1782591040000,-500.0,0.00038356,2]
[426558773,1782591040000,-500.0,0.00038356,2]
[426558791,1782591040000,-500.0,0.00038356,2]
[426558787,1782591040000,-500.0,0.00038356,2]
[426558793,1782591040000,-500.0,0.00038356,2]
[426558795,1782591040000,-500.0,0.00038356,2]
[426558794,1782591040000,-500.0,0.00038356,2]
[426558777,1782591040000,-500.0,0.00038356,2]
[426558779,1782591040000,-500.0,0.00038356,2]
[426558774,1782591040000,-548.7605612,0.00038356,2]
[426558784,1782591040000,-500.0,0.00038356,2]
[426558887,1782591041000,-1000.0,0.00041095,2]
[426558863,1782591041000,-500.0,0.00039726,2]
[426558866,1782591041000,-500.0,0.00039726,2]
[426558864,1782591041000,-500.0,0.00039726,2]
[426558862,1782591041000,-594.88,0.00039726,2]
[426558886,1782591041000,-1000.0,0.00041095,2]
[426558865,1782591041000,-500.0,0.00039726,2]
[426558861,1782591041000,-500.0,0.00039726,2]
[426558858,1782591041000,-500.0,0.00039726,2]
[426558859,1782591041000,-500.0,0.00039726,2]
[426558857,1782591041000,-500.0,0.00039726,2]
[426558860,1782591041000,-506.98,0.00039726,2]
[426558870,1782591041000,-500.0,0.00039726,2]
[426558884,1782591041000,-151.45992739,0.00041095,2]
[426558873,1782591041000,-500.0,0.00039726,2]
[426558881,1782591041000,-735.64,0.00039999,2]
[426558867,1782591041000,-500.0,0.00039726,2]
[426558883,1782591041000,-16005.99882114,0.0004,15]
[426558868,1782591041000,-3697.04,0.00039726,2]
[426558880,1782591041000,-500.0,0.00039726,2]
[426558875,1782591041000,-500.0,0.00039726,2]
[426558888,1782591041000,-500.0,0.00041095,120]
[426558872,1782591041000,-500.0,0.00039726,2]
[426558879,1782591041000,-500.0,0.00039726,2]
[426558885,1782591041000,-500.0,0.00041095,120]
[426558855,1782591041000,-500.0,0.00039726,2]
[426558869,1782591041000,-500.0,0.00039726,2]
[426558848,1782591041000,-500.0,0.00039726,2]
[426558844,1782591041000,-500.0,0.00039726,2]
[426558849,1782591041000,-500.0,0.00039726,2]
[426558882,1782591041000,-200.0,0.0004,120]
[426558827,1782591041000,-500.0,0.00039726,2]
[426558826,1782591041000,-500.0,0.00039726,2]
[426558830,1782591041000,-500.0,0.00039726,2]
[426558832,1782591041000,-500.0,0.00039726,2]
[426558828,1782591041000,-500.0,0.00039726,2]
[426558831,1782591041000,-1000.0,0.00039726,2]
[426558829,1782591041000,-500.0,0.00039726,2]
[426558839,1782591041000,-500.0,0.00039726,2]
[426558841,1782591041000,-500.0,0.00039726,2]
[426558837,1782591041000,-500.0,0.00039726,2]
[426558833,1782591041000,-500.0,0.00039726,2]
[426558836,1782591041000,-500.0,0.00039726,2]
[426558843,1782591041000,-500.0,0.00039726,2]
[426558834,1782591041000,-500.0,0.00039726,2]
[426558835,1782591041000,-500.0,0.00039726,2]
[426558840,1782591041000,-598.16,0.00039726,2]
[426558846,1782591041000,-500.0,0.00039726,2]
[426558845,1782591041000,-500.0,0.00039726,2]
[426558842,1782591041000,-500.0,0.00039726,2]
[426558838,1782591041000,-1000.0,0.00039726,2]
[426558854,1782591041000,-500.0,0.00039726,2]
[426558850,1782591041000,-1688.5,0.00039726,2]
[426558847,1782591041000,-500.0,0.00039726,2]
[426558853,1782591041000,-500.0,0.00039726,2]
[426558851,1782591041000,-500.0,0.00039726,2]
[426558852,1782591041000,-500.0,0.00039726,2]
[426558856,1782591041000,-500.0,0.00039726,2]
[426558878,1782591041000,-500.0,0.00039726,2]
[426558903,1782591041000,-500.0,0.00041095,120]
[426558874,1782591041000,-500.0,0.00039726,2]
[426558928,1782591041000,-500.0,0.00042465,120]
[426558919,1782591041000,-500.0,0.00041095,120]
[426558914,1782591041000,-500.0,0.00041095,120]
[426558945,1782591041000,-500.0,0.00042465,120]
[426558916,1782591041000,-3697.04,0.00041095,120]
[426558923,1782591041000,-500.0,0.00041095,120]
[426558921,1782591041000,-263.72,0.00041095,120]
[426558936,1782591041000,-1000.0,0.00042465,2]
[426558940,1782591041000,-500.0,0.00042465,120]
[426558933,1782591041000,-500.0,0.00042465,120]
[426558918,1782591041000,-500.0,0.00041095,120]
[426558924,1782591041000,-500.0,0.00042465,120]
[426558944,1782591041000,-500.0,0.00042465,90]
[426558925,1782591041000,-515.04,0.00042465,120]
[426558934,1782591041000,-500.0,0.00042465,120]
[426558920,1782591041000,-500.0,0.00041095,120]
[426558939,1782591041000,-335.98,0.00042465,120]
[426558926,1782591041000,-500.0,0.00042465,120]
[426558938,1782591041000,-163.0,0.00042465,120]
[426558935,1782591041000,-500.0,0.00042465,90]
[426558941,1782591041000,-500.0,0.00042465,120]
[426558943,1782591041000,-1688.5,0.00042465,120]
[426558927,1782591041000,-500.0,0.00042465,120]
[426558930,1782591041000,-500.0,0.00042465,120]
[426558931,1782591041000,-404.44,0.00042465,120]
[426558922,1782591041000,-500.0,0.00041095,120]
[426558929,1782591041000,-500.0,0.00042465,120]
[426558917,1782591041000,-500.0,0.00041095,2]
[426558942,1782591041000,-500.0,0.00042465,120]
[426558876,1782591041000,-500.0,0.00039726,2]
[426558932,1782591041000,-500.0,0.00042465,120]
[426558871,1782591041000,-500.0,0.00039726,2]
[426558877,1782591041000,-500.0,0.00039726,2]
[426558910,1782591041000,-500.0,0.00041095,120]
[426558896,1782591041000,-818.03040939,0.00041095,2]
[426558889,1782591041000,-500.0,0.00041095,120]
[426558893,1782591041000,-500.0,0.00041095,120]
[426558897,1782591041000,-500.0,0.00041095,120]
[426558915,1782591041000,-500.0,0.00041095,120]
[426558911,1782591041000,-500.0,0.00041095,120]
[426558913,1782591041000,-500.0,0.00041095,120]
[426558901,1782591041000,-1000.0,0.00041095,2]
[426558895,1782591041000,-389.22,0.00041095,120]
[426558892,1782591041000,-500.0,0.00041095,120]
[426558899,1782591041000,-500.0,0.00041095,120]
[426558898,1782591041000,-500.0,0.00041095,120]
[426558891,1782591041000,-500.0,0.00041095,120]
[426558907,1782591041000,-500.0,0.00041095,120]
[426558904,1782591041000,-500.0,0.00041095,120]
[426558906,1782591041000,-500.0,0.00041095,120]
[426558912,1782591041000,-500.0,0.00041095,2]
[426558900,1782591041000,-500.0,0.00041095,90]
[426558902,1782591041000,-500.0,0.00041095,2]
[426558908,1782591041000,-1688.5,0.00041095,120]
[426558890,1782591041000,-500.0,0.00041095,120]
[426558894,1782591041000,-500.0,0.00041095,120]
[426558905,1782591041000,-500.0,0.00041095,120]
[426558937,1782591041000,-500.0,0.00042465,2]
[426558909,1782591041000,-500.0,0.00041095,90]
[426558972,1782591042000,-500.0,0.00043835,120]
[426558966,1782591042000,-489.24,0.00043835,120]
[426558990,1782591042000,-500.0,0.00045205,120]
[426558962,1782591042000,-642.14,0.00043835,120]
[426558957,1782591042000,-500.0,0.00042465,120]
[426558979,1782591042000,-500.0,0.00043835,120]
[426558954,1782591042000,-500.0,0.00042465,120]
[426558981,1782591042000,-3697.04,0.00043835,120]
[426558973,1782591042000,-500.0,0.00043835,120]
[426558961,1782591042000,-500.0,0.00043835,120]
[426558984,1782591042000,-197.48,0.00043835,120]
[426558985,1782591042000,-500.0,0.00043835,120]
[426559006,1782591042000,-500.0,0.00045205,120]
[426559001,1782591042000,-500.0,0.00045205,2]
[426559015,1782591042000,-1000.0,0.00046575,2]
[426559010,1782591042000,-500.0,0.00046575,120]
[426559011,1782591042000,-500.0,0.00046575,120]
[426558998,1782591042000,-1688.5,0.00045205,120]
[426559005,1782591042000,-355.84,0.00045205,2]
[426559014,1782591042000,-500.0,0.00046575,90]
[426559020,1782591042000,-500.0,0.00046575,120]
[426559004,1782591042000,-3697.04,0.00045205,120]
[426559009,1782591042000,-500.0,0.00046575,120]
[426558994,1782591042000,-1000.0,0.00045205,2]
[426558999,1782591042000,-500.0,0.00045205,90]
[426558959,1782591042000,-500.0,0.00043835,120]
[426558987,1782591042000,-500.0,0.00045205,120]
[426558988,1782591042000,-435.14,0.00045205,120]
[426558971,1782591042000,-608.84,0.00043835,120]
[426558956,1782591042000,-500.0,0.00042465,120]
[426559003,1782591042000,-500.0,0.00045205,120]
[426558948,1782591042000,-500.0,0.00042465,120]
[426558946,1782591042000,-308.36,0.00042465,120]
[426558953,1782591042000,-277.64,0.00042465,120]
[426558951,1782591042000,-3697.04,0.00042465,120]
[426558950,1782591042000,-500.0,0.00042465,120]
[426558947,1782591042000,-500.0,0.00042465,2]
[426558949,1782591042000,-500.0,0.00042465,120]
[426558960,1782591042000,-418.46,0.00043835,120]
[426558980,1782591042000,-228.82,0.00043835,120]
[426558978,1782591042000,-500.0,0.00043835,120]
[426558963,1782591042000,-500.0,0.00043835,120]
[426558964,1782591042000,-500.0,0.00043835,120]
[426558955,1782591042000,-500.0,0.00042465,120]
[426558965,1782591042000,-500.0,0.00043835,120]
[426558983,1782591042000,-500.0,0.00043835,120]
[426558975,1782591042000,-500.0,0.00043835,90]
[426558976,1782591042000,-500.0,0.00043835,120]
[426558989,1782591042000,-500.0,0.00045205,120]
[426558986,1782591042000,-500.0,0.00043835,120]
[426558958,1782591042000,-178.1611367,0.00042865,2]
[426558967,1782591042000,-500.0,0.00043835,120]
[426558969,1782591042000,-1000.0,0.00043835,2]
[426558968,1782591042000,-500.0,0.00043835,90]
[426558970,1782591042000,-500.0,0.00043835,2]
[426558977,1782591042000,-500.0,0.00043835,2]